bitfinex-derivatives/quotes_BTCF0:USTF0_20230901
["timestamp","ask_amount","ask_price","bid_price","bid_amount"]
[1693593312521,0.719526,25489.0,25488.0,1.75215214]
[1693593313121,0.719526,25489.0,25488.0,1.97741147]
[1693593313822,0.719526,25489.0,25488.0,1.89937114]
[1693593314123,0.83655057,25489.0,25488.0,1.86855296]
[1693593314318,0.83655057,25489.0,25488.0,0.73717565]
[1693593314520,0.83655057,25489.0,25488.0,1.86855134]
[1693593314716,0.83655057,25489.0,25488.0,1.97740985]
[1693593314925,0.68933757,25489.0,25488.0,0.76799383]
[1693593315223,0.83655057,25489.0,25488.0,1.83019848]
[1693593315625,0.83655057,25489.0,25488.0,1.97741748]
[1693593315918,0.4290278,25489.0,25488.0,1.97741748]
[1693593316118,0.4290278,25489.0,25488.0,2.01643764]
[1693593316421,0.4251,25489.0,25488.0,2.16365664]
[1693593316925,0.001,25489.0,25488.0,2.58775664]
[1693593317718,0.001,25489.0,25488.0,2.54901036]
[1693593317916,0.001,25489.0,25488.0,2.58775664]
[1693593320122,0.001,25489.0,25488.0,2.47061252]
[1693593321419,0.001,25489.0,25488.0,2.62742192]
[1693593321918,0.001,25489.0,25488.0,2.88726975]
[1693593323125,0.001,25489.0,25488.0,2.88727206]
[1693593325230,0.001,25489.0,25488.0,2.62742192]
[1693593326119,0.001,25489.0,25488.0,2.47061252]
[1693593326728,0.001,25489.0,25488.0,2.88727284]
[1693593327119,0.001,25489.0,25488.0,2.62742192]
[1693593327815,0.001,25489.0,25488.0,2.47061252]
[1693593328322,0.001,25489.0,25488.0,2.88726973]
[1693593328530,0.001,25489.0,25488.0,2.88727107]
[1693593329327,0.001,25489.0,25488.0,2.47061252]
[1693593329923,0.001,25489.0,25488.0,2.62742192]
[1693593330131,0.001,25489.0,25488.0,2.47061252]
[1693593330830,0.001,25489.0,25488.0,2.62742192]
[1693593331231,0.0049278,25489.0,25488.0,2.47061252]
[1693593333131,0.16157743,25489.0,25488.0,2.58840425]
[1693593333328,0.15664963,25492.0,25490.0,0.3]
[1693593333519,0.15664963,25494.0,25493.0,0.3]
[1693593333726,0.15664963,25494.0,25493.0,1.84333883]
[1693593333927,0.15664963,25495.0,25493.0,3.0054567]
[1693593334126,0.15664963,25495.0,25494.0,1.63364709]
[1693593334322,0.15690013,25495.0,25494.0,3.11772752]
[1693593334527,0.15690013,25497.0,25496.0,0.3]
[1693593334726,0.15690013,25497.0,25496.0,2.97420765]
[1693593335032,0.03497825,25501.0,25497.0,0.4241]
[1693593335229,0.19615095,25500.0,25498.0,0.83409744]
[1693593335433,0.19615095,25500.0,25499.0,0.66955744]
[1693593335733,0.19615095,25500.0,25499.0,1.30899162]
[1693593336122,0.30924772,25500.0,25499.0,1.30899162]
[1693593336330,0.11702457,25500.0,25499.0,1.11101944]
[1693593336523,0.11702457,25500.0,25499.0,1.12201944]
[1693593337033,0.11702457,25500.0,25499.0,1.15283762]
[1693593337222,1.00256857,25500.0,25499.0,0.25645744]
[1693593337527,1.14971657,25500.0,25499.0,0.011]
[1693593337734,1.25909471,25500.0,25499.0,0.011]
[1693593337930,1.25909471,25500.0,25499.0,0.019]
[1693593338133,1.49447585,25500.0,25499.0,0.019]
[1693593338330,0.0039278,25497.0,25496.0,0.294341]
[1693593338627,0.7223598,25497.0,25496.0,0.57063145]
[1693593338829,0.7423598,25497.0,25496.0,0.39264227]
[1693593339625,0.85545657,25497.0,25496.0,0.39464227]
[1693593340029,1.01207524,25497.0,25496.0,0.39464227]
[1693593340334,0.85545657,25497.0,25496.0,0.39464227]
[1693593340727,1.11200071,25497.0,25496.0,0.24747227]
[1693593340933,1.11200071,25497.0,25496.0,0.24547227]
[1693593341135,1.09200071,25497.0,25496.0,0.24747227]
[1693593341337,1.25640071,25497.0,25496.0,0.24747227]
[1693593341630,1.27640071,25497.0,25496.0,0.24847227]
[1693593341838,1.47217756,25497.0,25496.0,0.24847227]
[1693593342031,1.45217756,25497.0,25496.0,0.24847227]
[1693593342336,1.45217756,25497.0,25496.0,0.39564427]
[1693593342537,1.34279942,25497.0,25496.0,0.39564427]
[1693593342727,1.08253665,25497.0,25496.0,0.39564427]
[1693593342927,0.65843665,25497.0,25496.0,0.99773445]
[1693593343543,0.65843665,25497.0,25496.0,0.96691627]
[1693593344236,0.65843665,25497.0,25496.0,0.99773445]
[1693593344432,0.61930009,25497.0,25496.0,0.96691627]
[1693593344639,0.4626598,25497.0,25496.0,0.99773445]
[1693593345038,0.65843665,25497.0,25496.0,0.96691627]
[1693593345234,0.4626598,25497.0,25496.0,0.96691627]
[1693593345536,0.65843665,25497.0,25496.0,0.96691627]
[1693593346338,0.4626598,25497.0,25496.0,0.96691627]
[1693593346839,0.65843665,25497.0,25496.0,0.96691627]
[1693593347141,1.08253665,25497.0,25496.0,0.96691627]
[1693593347339,0.8867598,25497.0,25496.0,0.96691627]
[1693593347540,1.08253665,25497.0,25496.0,0.96691627]
[1693593347941,0.8867598,25497.0,25496.0,0.96691627]
[1693593348744,1.0433985,25497.0,25496.0,0.96691627]
[1693593348938,1.0433985,25497.0,25496.0,0.99773445]
[1693593349439,1.0433985,25497.0,25496.0,0.96691627]
[1693593349641,1.0433985,25497.0,25496.0,0.99773445]
[1693593349835,1.0433985,25497.0,25496.0,0.96691627]
[1693593350236,0.8867598,25497.0,25496.0,0.96691627]
[1693593351052,0.8962325,25497.0,25496.0,0.96691627]
[1693593351636,0.8962325,25497.0,25496.0,0.99773445]
[1693593351853,1.0433985,25497.0,25496.0,0.96691627]
[1693593352144,1.15649527,25497.0,25496.0,0.96691627]
[1693593352647,1.41303941,25497.0,25496.0,0.24847227]
[1693593352848,1.47217756,25497.0,25496.0,0.003]
[1693593353245,1.27640071,25497.0,25496.0,0.24848767]
[1693593353441,0.76907167,25497.0,25496.0,0.57364985]
[1693593353645,0.1683278,25497.0,25496.0,1.31209385]
[1693593353855,0.1644,25497.0,25496.0,1.29209385]
[1693593354158,0.1644,25497.0,25496.0,1.31209385]
[1693593354545,0.1644,25497.0,25496.0,1.31009385]
[1693593354748,0.1644,25497.0,25496.0,1.31209385]
[1693593355160,0.1644,25497.0,25496.0,1.31009385]
[1693593355351,0.1644,25497.0,25496.0,1.30909385]
[1693593355858,0.1644,25497.0,25496.0,1.28909385]
[1693593357656,0.27749677,25497.0,25496.0,1.28909385]
[1693593358562,0.1644,25497.0,25496.0,1.28909385]
[1693593363355,0.1644,25497.0,25496.0,1.58909385]
[1693593363559,0.16056167,25501.0,25496.0,2.74002993]
[1693593363757,0.1596,25500.0,25497.0,0.24548767]
[1693593363953,0.1596,25500.0,25499.0,0.4241]
[1693593364159,0.61278183,25502.0,25499.0,1.57820367]
[1693593364160,0.15664387,25502.0,25499.0,1.57820367]
[1693593364358,0.31624387,25503.0,25501.0,0.4241]
[1693593364563,0.1596,25503.0,25502.0,1.25813567]
[1693593364759,0.1596,25503.0,25502.0,1.27813567]
[1693593364954,0.1596,25503.0,25502.0,1.30895385]
[1693593367060,0.1596,25503.0,25502.0,1.31095385]
[1693593367261,0.1596,25503.0,25502.0,1.31295385]
[1693593367564,0.1596,25503.0,25502.0,0.88885385]
[1693593368353,0.03138038,25505.0,25502.0,0.88885385]
[1693593368562,0.1522,25505.0,25503.0,0.27630585]
[1693593368758,0.1522,25505.0,25504.0,0.68686567]
[1693593368958,0.1522,25505.0,25504.0,0.83399167]
[1693593369153,0.1522,25505.0,25504.0,0.87006777]
[1693593370056,0.1522,25505.0,25504.0,0.87206777]
[1693593370261,0.1522,25505.0,25504.0,1.29596777]
[1693593370958,0.1522,25505.0,25504.0,1.29696777]
[1693593371663,0.1522,25505.0,25504.0,1.0514801]
[1693593372566,0.1522,25505.0,25504.0,1.0494801]
[1693593373262,0.1522,25505.0,25504.0,1.0484801]
[1693593376566,0.1561178,25505.0,25504.0,1.0484801]
[1693593376755,0.1561178,25505.0,25504.0,0.72340992]
[1693593376955,0.3032378,25505.0,25504.0,0.72340992]
[1693593377160,0.1561178,25505.0,25504.0,0.87053592]
[1693593377561,0.1561178,25505.0,25504.0,0.9013541]
[1693593377872,0.1522,25505.0,25504.0,1.0484801]
[1693593379468,0.1522,25505.0,25504.0,1.0564801]
[1693593380063,0.1561178,25505.0,25504.0,1.0564801]
[1693593380971,0.1561178,25505.0,25504.0,1.0674801]
[1693593383267,0.03568023,25506.0,25505.0,0.4239]
[1693593383472,0.0039178,25506.0,25505.0,1.46709818]
[1693593384268,0.0039178,25506.0,25505.0,1.4723561]
[1693593386576,0.0039178,25506.0,25505.0,1.49130911]
[1693593387573,0.11701457,25506.0,25505.0,1.31337093]
[1693593387879,0.57835657,25506.0,25505.0,0.44811093]
[1693593388173,1.11163471,25506.0,25505.0,0.44811093]
[1693593391878,1.25874871,25506.0,25505.0,0.44811093]
[1693593392083,1.25874871,25506.0,25505.0,0.02421093]
[1693593393689,1.41539258,25506.0,25505.0,0.02421093]
[1693593394775,1.44744631,25506.0,25505.0,0.02421093]
[1693593395582,1.29080244,25506.0,25505.0,0.02421093]
[1693593397586,1.06267929,25506.0,25505.0,0.02421093]
[1693593397791,1.48657929,25506.0,25505.0,0.02421093]
[1693593399286,1.29080244,25506.0,25505.0,0.02421093]
[1693593399791,0.0039178,25500.0,25499.0,0.4239]
[1693593400092,0.66783971,25500.0,25499.0,0.66934528]
[1693593400591,0.82943971,25500.0,25499.0,0.66934528]
[1693593401200,0.97658871,25500.0,25499.0,0.70634528]
[1693593401385,1.57707235,25500.0,25499.0,0.27107818]
[1693593401585,1.57709415,25500.0,25499.0,0.037]
[1693593401798,1.42048871,25500.0,25499.0,0.037]
[1693593401982,1.42048871,25500.0,25499.0,0.074]
[1693593402590,1.42048871,25500.0,25499.0,0.07080886]
[1693593402790,1.61621826,25500.0,25499.0,0.07080886]
[1693593403186,1.61621826,25500.0,25499.0,0.04080886]
[1693593403392,1.61621826,25500.0,25499.0,0.00875428]
[1693593403896,0.0039178,25495.0,25494.0,0.4239]
[1693593404093,0.66792671,25495.0,25494.0,0.66938404]
[1693593405091,0.67092671,25495.0,25494.0,0.70638404]
[1693593405996,0.67392671,25495.0,25494.0,0.74338404]
[1693593406197,0.70792671,25495.0,25494.0,0.70938404]
[1693593406597,0.85510471,25495.0,25494.0,0.70938404]
[1693593406795,0.85510471,25495.0,25494.0,0.4639]
[1693593407098,0.85510471,25495.0,25494.0,0.04]
[1693593407099,1.27900471,25495.0,25494.0,0.04]
[1693593407297,1.46430471,25495.0,25494.0,0.006]
[1693593407896,1.42730471,25495.0,25494.0,0.003]
[1693593408095,1.46430471,25495.0,25494.0,0.006]
[1693593416999,1.49610122,25495.0,25494.0,0.4299]
[1693593422304,0.69863051,25495.0,25494.0,0.60790218]
[1693593422503,0.69863051,25495.0,25494.0,0.77508618]
[1693593422906,0.69863051,25495.0,25494.0,0.744268]
[1693593423208,0.81172728,25495.0,25494.0,0.597084]
[1693593423802,0.92110542,25495.0,25494.0,0.4499]
[1693593424003,1.07220122,25495.0,25494.0,0.4299]
[1693593424797,0.92502322,25495.0,25494.0,0.4299]
[1693593425610,1.07220122,25495.0,25494.0,0.4299]
[1693593425804,1.49610122,25495.0,25494.0,0.006]
[1693593430906,0.81564508,25495.0,25494.0,0.4299]
[1693593431101,0.96282308,25495.0,25494.0,0.4299]
[1693593431710,1.07220122,25495.0,25494.0,0.4299]
[1693593432207,0.76780542,25495.0,25494.0,0.577084]
[1693593432705,0.65842728,25495.0,25494.0,0.577084]
[1693593432913,0.54533051,25495.0,25494.0,0.577084]
[1693593434010,0.39815251,25495.0,25494.0,1.02056854]
[1693593434407,0.10379651,25495.0,25494.0,1.16775254]
[1693593434608,0.072,25495.0,25494.0,1.16775254]
[1693593434810,0.072,25495.0,25494.0,1.31493654]
[1693593435704,0.1510588,25502.0,25497.0,0.4239]
[1693593435904,0.294281,25502.0,25501.0,0.718188]
[1693593436112,0.294281,25502.0,25501.0,0.74900618]
[1693593436909,0.147133,25503.0,25501.0,0.89615018]
[1693593437208,0.294266,25503.0,25502.0,0.74899418]
[1693593438309,0.294266,25503.0,25502.0,0.75099418]
[1693593438507,0.294266,25503.0,25502.0,0.720176]
[1693593438508,0.43917117,25503.0,25502.0,0.720176]
[1693593438709,0.44017117,25503.0,25502.0,0.722176]
[1693593439018,0.3270744,25503.0,25502.0,0.722176]
[1693593439403,0.3270744,25503.0,25502.0,0.75299418]
[1693593442210,0.0328084,25503.0,25502.0,0.75299418]
[1693593442412,0.0328084,25503.0,25502.0,0.92013218]
[1693593442708,0.001,25503.0,25502.0,0.90013218]
[1693593442914,0.001,25503.0,25502.0,1.06727018]
[1693593443112,0.001,25503.0,25502.0,1.31266543]
[1693593443617,0.4504308,25509.0,25502.0,1.28184725]
[1693593443817,0.4543486,25509.0,25508.0,0.4239]
[1693593444016,0.71454537,25509.0,25508.0,0.4239]
[1693593444213,0.8241427,25509.0,25508.0,0.4239]
[1693593444412,0.71472041,25509.0,25508.0,0.4239]
[1693593444921,0.71472041,25509.0,25508.0,0.4269]
[1693593445615,0.71472041,25509.0,25508.0,0.4289]
[1693593446114,0.82409855,25509.0,25508.0,0.4289]
[1693593446319,0.74547276,25509.0,25508.0,0.4289]
[1693593446715,0.74547276,25509.0,25508.0,0.4279]
[1693593447020,0.78435542,25509.0,25508.0,0.45871818]
[1693593447314,0.78435542,25509.0,25508.0,0.4279]
[1693593447518,0.58906692,25509.0,25508.0,0.43326554]
[1693593447821,0.63224637,25509.0,25508.0,0.46408372]
[1693593448607,0.63221265,25509.0,25508.0,0.43326554]
[1693593449621,0.85468756,25509.0,25508.0,0.43326554]
[1693593450821,0.74530942,25509.0,25508.0,0.43326554]
[1693593451020,0.85468756,25509.0,25508.0,0.43326554]
[1693593451221,0.74530942,25509.0,25508.0,0.43326554]
[1693593451622,0.58906692,25509.0,25508.0,0.43326554]
[1693593452017,0.47597015,25509.0,25508.0,0.46408372]
[1693593452220,0.47597015,25509.0,25508.0,0.43326554]
[1693593452927,0.47597015,25509.0,25508.0,0.58036854]
[1693593453923,0.47597015,25509.0,25508.0,0.61118672]
[1693593455816,0.69844506,25509.0,25508.0,0.58036854]
[1693593456420,0.69844506,25509.0,25508.0,0.43326554]
[1693593457725,0.58906692,25509.0,25508.0,0.43326554]
[1693593458631,0.69844506,25509.0,25508.0,0.43326554]
[1693593459325,0.47597015,25509.0,25508.0,0.61118672]
[1693593459527,0.32886915,25509.0,25508.0,0.61118672]
[1693593459921,0.32886915,25509.0,25508.0,0.75828972]
[1693593460921,0.32886915,25509.0,25508.0,0.72747154]
[1693593461133,0.32886915,25509.0,25508.0,0.75828972]
[1693593461434,0.47596915,25509.0,25508.0,0.75828972]
[1693593461733,0.58906592,25509.0,25508.0,0.58036854]
[1693593462131,0.69844406,25509.0,25508.0,0.58036854]
[1693593462632,0.58906592,25509.0,25508.0,0.58036854]
[1693593463425,0.69844406,25509.0,25508.0,0.58036854]
[1693593463628,0.58906592,25509.0,25508.0,0.58036854]
[1693593464329,0.58534729,25509.0,25508.0,0.58036854]
[1693593464523,0.47596915,25509.0,25508.0,0.61118672]
[1693593465733,0.47596915,25509.0,25508.0,0.75828972]
[1693593465933,0.32886915,25509.0,25508.0,0.75828972]
[1693593468039,0.32886915,25509.0,25508.0,0.72747154]
[1693593468731,0.32886915,25509.0,25508.0,0.75828972]
[1693593469335,0.32886915,25509.0,25508.0,0.72747154]
[1693593469732,0.32886915,25509.0,25508.0,0.75828972]
[1693593470131,0.32886915,25509.0,25508.0,0.72747154]
[1693593470331,0.32886915,25509.0,25508.0,0.75828972]
[1693593470526,0.32886915,25509.0,25508.0,0.58036854]
[1693593470725,0.47596915,25509.0,25508.0,0.46408372]
[1693593470925,0.47596915,25509.0,25508.0,0.43326554]
[1693593471536,0.58534729,25509.0,25508.0,0.43326554]
[1693593471935,0.58534729,25509.0,25508.0,0.58036854]
[1693593472135,0.69844406,25509.0,25508.0,0.58036854]
[1693593473339,0.69844406,25509.0,25508.0,0.43326554]
[1693593473731,1.26944406,25509.0,25508.0,0.00936554]
[1693593474236,1.28944406,25509.0,25508.0,0.00936554]
[1693593474629,1.28944406,25509.0,25507.0,0.4239]
[1693593474630,0.0039178,25505.0,25504.0,0.4239]
[1693593474834,0.83487671,25505.0,25504.0,0.4239]
[1693593475437,0.98647671,25505.0,25504.0,0.4239]
[1693593475838,0.96647671,25505.0,25504.0,0.4239]
[1693593476243,0.96647671,25505.0,25504.0,0.4329]
[1693593476833,0.96647671,25505.0,25504.0,0.4409]
[1693593477033,1.1679018,25505.0,25504.0,0.19494518]
[1693593477333,0.1516,25505.0,25504.0,1.32561149]
[1693593477644,0.001,25505.0,25504.0,1.31961149]
[1693593477828,0.003,25505.0,25504.0,1.31461149]
[1693593478031,0.003,25505.0,25504.0,1.47161149]
[1693593478434,0.003,25505.0,25504.0,1.46961149]
[1693593479229,0.003,25505.0,25504.0,1.46761149]
[1693593480432,0.003,25505.0,25504.0,1.46561149]
[1693593480635,0.003,25505.0,25504.0,1.54360703]
[1693593481639,0.003,25505.0,25504.0,1.46561149]
[1693593484344,0.003,25505.0,25504.0,1.54360703]
[1693593485737,0.003,25505.0,25504.0,1.54384563]
[1693593486041,0.003,25505.0,25504.0,1.54385992]
[1693593486343,0.003,25505.0,25504.0,1.5438609]
[1693593486846,0.003,25505.0,25504.0,1.46561149]
[1693593487041,0.18699485,25509.0,25505.0,0.4239]
[1693593487245,0.1562425,25510.0,25508.0,0.4239]
[1693593487447,0.1562425,25510.0,25509.0,1.25767731]
[1693593487646,0.1952885,25511.0,25509.0,1.25767731]
[1693593487841,0.1952885,25511.0,25510.0,0.70010349]
[1693593488040,0.1952885,25511.0,25510.0,1.28847149]
[1693593488244,0.1558178,25512.0,25510.0,1.28847149]
[1693593488447,0.1758178,25512.0,25511.0,0.45471818]
[1693593488642,0.1758178,25512.0,25511.0,0.89597618]
[1693593489045,0.2065952,25512.0,25511.0,0.89597618]
[1693593489351,0.87031011,25512.0,25511.0,0.570986]
[1693593489535,1.10465632,25512.0,25511.0,0.570986]
[1693593490449,1.10465632,25512.0,25511.0,0.573986]
[1693593490644,0.92711697,25512.0,25511.0,0.573986]
[1693593490945,0.92711697,25512.0,25511.0,0.576986]
[1693593491145,0.81773883,25512.0,25511.0,0.576986]
[1693593491349,0.68464206,25512.0,25511.0,0.576986]
[1693593491546,0.6278352,25512.0,25511.0,0.576986]
[1693593491743,0.6278352,25512.0,25511.0,0.60780418]
[1693593492142,0.95804552,25512.0,25511.0,0.724072]
[1693593492342,0.95804552,25512.0,25511.0,0.75489018]
[1693593492745,0.95804552,25512.0,25511.0,0.724072]
[1693593492948,0.81096552,25512.0,25511.0,0.75489018]
[1693593493244,0.53755727,25512.0,25511.0,0.75489018]
[1693593493446,0.24339676,25512.0,25511.0,0.90197618]
[1693593493662,0.3871187,25512.0,25511.0,1.16730614]
[1693593494852,0.3871187,25512.0,25511.0,1.31439214]
[1693593495043,0.3871187,25512.0,25511.0,1.31339214]
[1693593495445,0.3871187,25512.0,25511.0,1.31239214]
[1693593495842,0.3871187,25512.0,25511.0,1.16530614]
[1693593496251,0.3871187,25512.0,25511.0,1.31239214]
[1693593496447,0.3871187,25512.0,25511.0,1.16530614]
[1693593497150,0.3910365,25512.0,25511.0,1.16530614]
[1693593497541,0.3910365,25512.0,25511.0,1.31239214]
[1693593497942,0.3910365,25512.0,25511.0,1.31139214]
[1693593498142,0.2352187,25513.0,25511.0,1.31139214]
[1693593498350,0.2352187,25513.0,25512.0,1.2883574]
[1693593498648,0.41765077,25514.0,25512.0,1.2883574]
[1693593498854,0.1514,25514.0,25513.0,0.7000374]
[1693593499148,0.2352187,25516.0,25513.0,1.3083334]
[1693593499354,0.19585038,25514.0,25513.0,0.608296]
[1693593499544,0.15660282,25514.0,25513.0,1.27749256]
[1693593499946,0.15660282,25514.0,25513.0,1.30831074]
[1693593500445,0.19585038,25515.0,25513.0,1.31131074]
[1693593500644,0.19585038,25515.0,25514.0,0.70001474]
[1693593500844,0.19585038,25515.0,25514.0,1.30829074]
[1693593501041,0.19585038,25516.0,25514.0,1.30829074]
[1693593501244,0.19585038,25516.0,25515.0,1.04297018]
[1693593501440,0.19585038,25516.0,25515.0,1.30825851]
[1693593501646,0.34725038,25517.0,25515.0,1.30825851]
[1693593501847,0.34725038,25517.0,25516.0,1.04294618]
[1693593502654,0.37902405,25517.0,25516.0,1.04294618]
[1693593503249,0.22762405,25517.0,25516.0,1.04594618]
[1693593503449,0.18819391,25517.0,25516.0,1.04594618]
[1693593503953,0.18819391,25517.0,25516.0,1.04494618]
[1693593504151,0.15642024,25517.0,25516.0,1.06794618]
[1693593504460,0.15642024,25518.0,25516.0,1.06794618]
[1693593504655,0.30842024,25519.0,25517.0,0.45471818]
[1693593504849,0.30842024,25519.0,25518.0,1.012084]
[1693593505249,0.152,25519.0,25518.0,1.04290218]
[1693593506451,0.152,25519.0,25518.0,1.04490218]
[1693593506954,0.26509677,25519.0,25518.0,0.4259]
[1693593507551,0.152,25519.0,25518.0,0.45671818]
[1693593507956,0.152,25519.0,25518.0,0.45771818]
[1693593509551,0.34728149,25519.0,25518.0,0.4269]
[1693593509856,0.48037826,25519.0,25518.0,0.4269]
[1693593510266,0.36728149,25519.0,25518.0,0.4269]
[1693593510563,0.36728149,25519.0,25518.0,0.45771818]
[1693593512162,0.5897564,25519.0,25518.0,0.4269]
[1693593512358,0.30817207,25519.0,25518.0,0.45771818]
[1693593513650,0.152,25519.0,25518.0,0.45771818]
[1693593516866,0.152,25519.0,25518.0,0.4269]
[1693593517057,0.152,25519.0,25518.0,0.45771818]
[1693593519869,0.05903669,25525.0,25519.0,0.3]
[1693593520171,0.1637,25527.0,25524.0,0.4239]
[1693593520366,0.02,25527.0,25526.0,0.4239]
[1693593520868,0.02,25527.0,25526.0,0.45471818]
[1693593521264,0.15617207,25527.0,25526.0,0.45471818]
[1693593521470,0.31617207,25528.0,25526.0,0.45471818]
[1693593521666,0.33617207,25528.0,25527.0,0.45471818]
[1693593521867,0.33617207,25528.0,25527.0,0.4239]
[1693593522367,0.33617207,25528.0,25527.0,0.45471818]
[1693593522671,0.18,25528.0,25527.0,0.45471818]
[1693593522873,0.18,25528.0,25527.0,0.45771818]
[1693593523561,0.33597658,25528.0,25527.0,0.45771818]
[1693593523960,0.55845149,25528.0,25527.0,0.4299]
[1693593524162,0.5977564,25528.0,25527.0,0.4299]
[1693593525369,0.40247491,25528.0,25527.0,0.35886624]
[1693593525569,0.40247491,25528.0,25527.0,0.26089231]
[1693593527070,1.02136926,25528.0,25526.0,0.4239]
[1693593527270,1.02136926,25528.0,25527.0,0.4239]
[1693593527271,0.37499435,25528.0,25527.0,0.4239]
[1693593527675,0.59746926,25528.0,25527.0,0.4239]
[1693593529382,0.40247491,25528.0,25527.0,0.4239]
[1693593529680,0.56147573,25528.0,25527.0,0.4239]
[1693593530270,0.40547491,25528.0,25527.0,0.4269]
[1693593530474,0.56151428,25528.0,25527.0,0.4269]
[1693593530875,0.56154375,25528.0,25527.0,0.4269]
[1693593531376,0.40547491,25528.0,25527.0,0.4269]
[1693593532073,0.60046926,25528.0,25527.0,0.4269]
[1693593532667,0.60046926,25528.0,25527.0,0.41341089]
[1693593532869,1.02436926,25528.0,25524.0,0.4239]
[1693593533073,0.15615806,25525.0,25520.0,0.4239]
[1693593533376,0.17615806,25525.0,25524.0,0.4239]
[1693593533680,0.39863297,25525.0,25524.0,0.4239]
[1693593533878,0.39863297,25525.0,25524.0,0.4269]
[1693593534581,0.24247491,25525.0,25524.0,0.4269]
[1693593534975,0.66637491,25525.0,25524.0,0.003]
[1693593535176,0.39866609,25525.0,25524.0,0.4299]
[1693593535586,0.40166609,25525.0,25524.0,0.4269]
[1693593535782,0.40166609,25525.0,25524.0,0.4239]
[1693593535982,0.40766609,25525.0,25524.0,0.4269]
[1693593536183,0.40766609,25525.0,25524.0,0.4299]
[1693593536573,0.24547491,25525.0,25524.0,0.4269]
[1693593536784,0.25147491,25525.0,25524.0,0.4299]
[1693593537084,0.69248991,25525.0,25524.0,0.4299]
[1693593537471,0.88748426,25525.0,25524.0,0.4299]
[1693593537672,1.45838926,25525.0,25522.0,0.4239]
[1693593537888,0.1563007,25523.0,25522.0,0.34544719]
[1693593538189,0.5973517,25523.0,25522.0,0.34544719]
[1693593538384,0.83982661,25523.0,25522.0,0.34544719]
[1693593538690,0.98684361,25523.0,25522.0,0.34544719]
[1693593538888,0.98684361,25523.0,25522.0,0.34844719]
[1693593539088,0.98684361,25523.0,25522.0,0.35144719]
[1693593539284,0.98684361,25523.0,25522.0,0.34844719]
[1693593539480,0.97184361,25523.0,25522.0,0.35144719]
[1693593539677,0.81554291,25523.0,25522.0,0.35144719]
[1693593539982,1.01053726,25523.0,25522.0,0.34844719]
[1693593540183,1.01953726,25523.0,25522.0,0.35144719]
[1693593540686,0.82454291,25523.0,25522.0,0.35144719]
[1693593541474,1.01953726,25523.0,25522.0,0.35144719]
[1693593542179,0.82454291,25523.0,25522.0,0.35144719]
[1693593542379,1.01953726,25523.0,25522.0,0.35144719]
[1693593543189,0.91015912,25523.0,25522.0,0.35144719]
[1693593543991,1.01953726,25523.0,25522.0,0.35144719]
[1693593544592,0.82454291,25523.0,25522.0,0.35144719]
[1693593545090,1.05976161,25523.0,25522.0,0.35144719]
[1693593545793,0.95038347,25523.0,25522.0,0.35144719]
[1693593545992,1.05976161,25523.0,25522.0,0.35144719]
[1693593546786,0.82454291,25523.0,25522.0,0.35144719]
[1693593547594,0.88132709,25523.0,25522.0,0.35144719]
[1693593548288,1.05940514,25523.0,25522.0,0.35144719]
[1693593548494,0.88132562,25523.0,25522.0,0.35144719]
[1693593548887,0.77194748,25523.0,25522.0,0.35144719]
[1693593549094,0.88132562,25523.0,25522.0,0.35144719]
[1693593549592,0.89833439,25523.0,25522.0,0.35144719]
[1693593549789,0.68984995,25523.0,25522.0,0.49846919]
[1693593549988,0.54283295,25523.0,25522.0,0.64549219]
[1693593550289,0.54283295,25523.0,25522.0,0.67631037]
[1693593550596,0.39581595,25523.0,25522.0,0.84333337]
[1693593550789,0.39581595,25523.0,25522.0,0.99035637]
[1693593550790,0.014,25523.0,25522.0,0.99035637]
[1693593551102,0.23479895,25526.0,25523.0,0.03081818]
[1693593551280,0.23479895,25527.0,25525.0,0.4239]
[1693593551486,0.23479895,25529.0,25526.0,0.864897]
[1693593551687,0.70693892,25530.0,25528.0,0.4239]
[1693593551895,0.32515897,25530.0,25529.0,0.570881]
[1693593552193,0.38193096,25530.0,25529.0,0.60169918]
[1693593552587,0.38193096,25530.0,25529.0,0.74868118]
[1693593553097,0.26606878,25530.0,25529.0,0.75168118]
[1693593553797,0.41304478,25530.0,25529.0,0.75168118]
[1693593554292,0.26606878,25530.0,25529.0,0.89866318]
[1693593554501,0.26606878,25530.0,25529.0,0.90166318]
[1693593554699,0.03127832,25530.0,25529.0,0.90166318]
[1693593555591,0.293947,25531.0,25529.0,0.89866318]
[1693593555793,0.001,25530.0,25529.0,0.466945]
[1693593555994,0.1574176,25530.0,25529.0,1.037827]
[1693593556191,0.1554176,25531.0,25529.0,1.31081158]
[1693593556398,0.1554176,25531.0,25530.0,0.4239]
[1693593556702,0.0981176,25531.0,25530.0,1.30777762]
[1693593557001,0.293886,25536.0,25530.0,1.06262218]
[1693593557002,0.146942,25536.0,25530.0,1.06262218]
[1693593557201,0.17816519,25536.0,25535.0,0.4239]
[1693593557399,0.03122319,25536.0,25535.0,0.74861218]
[1693593557600,0.67558546,25538.0,25536.0,0.4239]
[1693593557800,0.38172046,25538.0,25537.0,0.74858818]
[1693593557996,0.38172046,25538.0,25537.0,0.76858818]
[1693593558195,0.23479046,25538.0,25537.0,0.91552318]
[1693593558493,0.23479046,25539.0,25537.0,0.91552318]
[1693593558797,0.293841,25540.0,25538.0,0.89550818]
[1693593559102,0.14692,25540.0,25539.0,0.45471818]
[1693593559309,0.52862146,25541.0,25539.0,0.74856418]
[1693593559310,0.67553646,25541.0,25539.0,0.74856418]
[1693593559498,0.67553646,25541.0,25540.0,0.4239]
[1693593559499,0.440746,25541.0,25540.0,0.4239]
[1693593559699,1.36455472,25541.0,25540.0,0.38151001]
[1693593560003,0.75751098,25541.0,25540.0,0.38151001]
[1693593560302,1.260245,25541.0,25540.0,0.38151001]
[1693593561703,1.13998038,25541.0,25540.0,0.38451001]
[1693593562196,0.91750547,25541.0,25540.0,0.38451001]
[1693593562395,0.77058747,25541.0,25540.0,0.38451001]
[1693593562596,0.99306238,25541.0,25540.0,0.38451001]
[1693593562805,0.8971836,25541.0,25540.0,0.38451001]
[1693593563309,0.66321791,25541.0,25540.0,0.38451001]
[1693593563500,0.69534625,25541.0,25540.0,0.38451001]
[1693593563699,0.92931194,25541.0,25540.0,0.38451001]
[1693593563896,0.84226125,25541.0,25540.0,0.38451001]
[1693593564405,0.84226125,25541.0,25540.0,0.38751001]
[1693593565408,0.73288311,25541.0,25540.0,0.41832819]
[1693593565612,0.73288311,25541.0,25540.0,0.38751001]
[1693593565906,0.61978634,25541.0,25540.0,0.38751001]
[1693593566310,0.73288311,25541.0,25540.0,0.38751001]
[1693593566511,0.61978634,25541.0,25540.0,0.41832819]
[1693593567710,0.73288311,25541.0,25540.0,0.38751001]